[Event "Titled Tuesday Blitz August 16 Early 2022"]
[White "Shukhman, Anna"]
[Black "Omariev, Maksim"]
[WhiteFideId "54180058"]
[BlackFideId "4193423"]
[WhiteElo "1726"]
[BlackElo "2304"]
[Result "1-0"]
[Round "10"]
[TimeControl "180+2"]
[Date "2022.08.18"]
[WhiteClock "0:00:00"]
[BlackClock "0:00:00"]

1. e4 {[%clk 0:00:00]}  c5 {[%clk 0:00:00]} 2. Nf3 {[%clk 0:00:00]}  d6 {[%clk 0:00:00]} 3. d4 {[%clk 0:00:00]}  cxd4 {[%clk 0:00:00]} 4. Nxd4 {[%clk 0:00:00]}  Nf6 {[%clk 0:00:00]} 5. Nc3 {[%clk 0:00:00]}  a6 {[%clk 0:00:00]} 6. Qd3 {[%clk 0:00:00]}  Nbd7 {[%clk 0:00:00]} 7. a4 {[%clk 0:00:00]}  Nc5 {[%clk 0:00:00]} 8. Qe3 {[%clk 0:00:00]}  e5 {[%clk 0:00:00]} 9. Nb3 {[%clk 0:00:00]}  Nxb3 {[%clk 0:00:00]} 10. cxb3 {[%clk 0:00:00]}  Be6 {[%clk 0:00:00]} 11. Bc4 {[%clk 0:00:00]}  Be7 {[%clk 0:00:00]} 12. O-O {[%clk 0:00:00]}  O-O {[%clk 0:00:00]} 13. Qe2 {[%clk 0:00:00]}  Rc8 {[%clk 0:00:00]} 14. Bg5 {[%clk 0:00:00]}  Nd7 {[%clk 0:00:00]} 15. Bxe7 {[%clk 0:00:00]}  Qxe7 {[%clk 0:00:00]} 16. Rac1 {[%clk 0:00:00]}  Nc5 {[%clk 0:00:00]} 17. b4 {[%clk 0:00:00]}  Nb3 {[%clk 0:00:00]} 18. Bxb3 {[%clk 0:00:00]}  Bxb3 {[%clk 0:00:00]} 19. Nd5 {[%clk 0:00:00]}  Qe6 {[%clk 0:00:00]} 20. Nb6 {[%clk 0:00:00]}  Rxc1 {[%clk 0:00:00]} 21. Rxc1 {[%clk 0:00:00]}  f5 {[%clk 0:00:00]} 22. exf5 {[%clk 0:00:00]}  Qxf5 {[%clk 0:00:00]} 23. Qe3 {[%clk 0:00:00]}  Be6 {[%clk 0:00:00]} 24. f3 {[%clk 0:00:00]}  d5 {[%clk 0:00:00]} 25. Re1 {[%clk 0:00:00]}  e4 {[%clk 0:00:00]} 26. fxe4 {[%clk 0:00:00]}  Qg6 {[%clk 0:00:00]} 27. exd5 {[%clk 0:00:00]}  Bh3 {[%clk 0:00:00]} 28. Qxh3 {[%clk 0:00:00]}  Qxb6+ {[%clk 0:00:00]} 29. Qe3 {[%clk 0:00:00]}  Qxb4 {[%clk 0:00:00]} 30. b3 {[%clk 0:00:00]}  Qd6 {[%clk 0:00:00]} 31. Qe6+ {[%clk 0:00:00]}  Qxe6 {[%clk 0:00:00]} 32. dxe6 {[%clk 0:00:00]}  Re8 {[%clk 0:00:00]} 33. Kf2 {[%clk 0:00:00]}  Kf8 {[%clk 0:00:00]} 34. Re4 {[%clk 0:00:00]}  Ke7 {[%clk 0:00:00]} 35. Ke3 {[%clk 0:00:00]}  Rc8 {[%clk 0:00:00]} 36. Kd3 {[%clk 0:00:00]}  Rc6 {[%clk 0:00:00]} 37. Rb4 {[%clk 0:00:00]}  b6 {[%clk 0:00:00]} 38. a5 {[%clk 0:00:00]}  b5 {[%clk 0:00:00]} 39. Re4 {[%clk 0:00:00]}  Rxe6 {[%clk 0:00:00]} 40. Rxe6+ {[%clk 0:00:00]}  Kxe6 {[%clk 0:00:00]} 41. Kd4 {[%clk 0:00:00]}  Kd6 {[%clk 0:00:00]} 42. b4 {[%clk 0:00:00]}  g6 {[%clk 0:00:00]} 43. g3 {[%clk 0:00:00]}  h6 {[%clk 0:00:00]} 44. h3 {[%clk 0:00:00]}  h5 {[%clk 0:00:00]} 45. h4 {[%clk 0:00:00]}  Kc6 {[%clk 0:00:00]} 46. Ke5 {[%clk 0:00:00]}  Kc7 {[%clk 0:00:00]} 47. Kf6 {[%clk 0:00:00]}  Kd6 {[%clk 0:00:00]} 48. Kxg6 {[%clk 0:00:00]}  Kd5 {[%clk 0:00:00]} 49. Kxh5 {[%clk 0:00:00]}  Kc4 {[%clk 0:00:00]} 50. g4 {[%clk 0:00:00]}  Kxb4 {[%clk 0:00:00]} 51. g5 {[%clk 0:00:00]}  Kxa5 {[%clk 0:00:00]} 52. g6 {[%clk 0:00:00]}  b4 {[%clk 0:00:00]} 53. g7 {[%clk 0:00:00]}  Ka4 {[%clk 0:00:00]} 54. g8=Q {[%clk 0:00:00]}  a5 {[%clk 0:00:00]} 55. Qa2+ {[%clk 0:00:00]}  Kb5 {[%clk 0:00:00]} 56. Qd5+ {[%clk 0:00:00]}  Ka4 {[%clk 0:00:00]} 57. Kg5 {[%clk 0:00:00]}  b3 {[%clk 0:00:00]} 58. h5 {[%clk 0:00:00]}  Ka3 {[%clk 0:00:00]} 59. Qxa5+ {[%clk 0:00:00]}  Kb2 {[%clk 0:00:00]} 60. Qb6 {[%clk 0:00:00]} 1-0


[Site "https://www.chess.com"]

[Event "Titled Tuesday Blitz August 16 Early 2022"]
[White "Sourath Biswas"]
[Black "D`Arruda, Ricardo D."]
[WhiteFideId "35091484"]
[BlackFideId "100692"]
[WhiteElo "1777"]
[BlackElo "2271"]
[Result "1-0"]
[Round "10"]
[TimeControl "180+2"]
[Date "2022.08.18"]
[WhiteClock "0:00:00"]
[BlackClock "0:00:00"]

1. d4 {[%clk 0:00:00]}  Nf6 {[%clk 0:00:00]} 2. Bf4 {[%clk 0:00:00]}  d6 {[%clk 0:00:00]} 3. Nc3 {[%clk 0:00:00]}  Nbd7 {[%clk 0:00:00]} 4. Nf3 {[%clk 0:00:00]}  g6 {[%clk 0:00:00]} 5. e4 {[%clk 0:00:00]}  Bg7 {[%clk 0:00:00]} 6. Qd2 {[%clk 0:00:00]}  O-O {[%clk 0:00:00]} 7. e5 {[%clk 0:00:00]}  Nh5 {[%clk 0:00:00]} 8. Bh6 {[%clk 0:00:00]}  dxe5 {[%clk 0:00:00]} 9. Bxg7 {[%clk 0:00:00]}  Kxg7 {[%clk 0:00:00]} 10. dxe5 {[%clk 0:00:00]}  Nc5 {[%clk 0:00:00]} 11. Qe3 {[%clk 0:00:00]}  Ne6 {[%clk 0:00:00]} 12. Bc4 {[%clk 0:00:00]}  c6 {[%clk 0:00:00]} 13. O-O {[%clk 0:00:00]}  Qb6 {[%clk 0:00:00]} 14. Qxb6 {[%clk 0:00:00]}  axb6 {[%clk 0:00:00]} 15. a4 {[%clk 0:00:00]}  Bd7 {[%clk 0:00:00]} 16. g3 {[%clk 0:00:00]}  Rfd8 {[%clk 0:00:00]} 17. Rfd1 {[%clk 0:00:00]}  Be8 {[%clk 0:00:00]} 18. Bxe6 {[%clk 0:00:00]}  fxe6 {[%clk 0:00:00]} 19. Ng5 {[%clk 0:00:00]}  Bf7 {[%clk 0:00:00]} 20. Ne2 {[%clk 0:00:00]}  h6 {[%clk 0:00:00]} 21. Nh3 {[%clk 0:00:00]}  Kf8 {[%clk 0:00:00]} 22. g4 {[%clk 0:00:00]}  Ng7 {[%clk 0:00:00]} 23. Ng3 {[%clk 0:00:00]}  Rd5 {[%clk 0:00:00]} 24. f4 {[%clk 0:00:00]}  Rad8 {[%clk 0:00:00]} 25. Nf2 {[%clk 0:00:00]}  g5 {[%clk 0:00:00]} 26. fxg5 {[%clk 0:00:00]}  hxg5 {[%clk 0:00:00]} 27. c4 {[%clk 0:00:00]}  Rd4 {[%clk 0:00:00]} 28. Ne2 {[%clk 0:00:00]}  Rd2 {[%clk 0:00:00]} 29. Nc3 {[%clk 0:00:00]}  Bg6 {[%clk 0:00:00]} 30. Kf1 {[%clk 0:00:00]}  R8d4 {[%clk 0:00:00]} 31. Rxd2 {[%clk 0:00:00]}  Rxd2 {[%clk 0:00:00]} 32. Ncd1 {[%clk 0:00:00]}  Bd3+ {[%clk 0:00:00]} 33. Nxd3 {[%clk 0:00:00]}  Rxd3 {[%clk 0:00:00]} 34. Ra3 {[%clk 0:00:00]}  Rd4 {[%clk 0:00:00]} 35. Nf2 {[%clk 0:00:00]}  Rxc4 {[%clk 0:00:00]} 36. Rb3 {[%clk 0:00:00]}  Rxa4 {[%clk 0:00:00]} 37. Rxb6 {[%clk 0:00:00]}  Ra7 {[%clk 0:00:00]} 38. Ne4 {[%clk 0:00:00]}  Ne8 {[%clk 0:00:00]} 39. Nxg5 {[%clk 0:00:00]}  Kg7 {[%clk 0:00:00]} 40. Nxe6+ {[%clk 0:00:00]}  Kg6 {[%clk 0:00:00]} 41. Nc5 {[%clk 0:00:00]}  Kg5 {[%clk 0:00:00]} 42. Rxb7 {[%clk 0:00:00]}  Rxb7 {[%clk 0:00:00]} 43. Nxb7 {[%clk 0:00:00]}  Kxg4 {[%clk 0:00:00]} 44. Nd8 {[%clk 0:00:00]}  c5 {[%clk 0:00:00]} 45. Nb7 {[%clk 0:00:00]}  c4 {[%clk 0:00:00]} 46. Na5 {[%clk 0:00:00]}  Kf5 {[%clk 0:00:00]} 47. Nxc4 {[%clk 0:00:00]}  Ke4 {[%clk 0:00:00]} 48. Ke2 {[%clk 0:00:00]}  Kd4 {[%clk 0:00:00]} 49. b3 {[%clk 0:00:00]}  Kc3 {[%clk 0:00:00]} 50. Ke3 {[%clk 0:00:00]}  Kxb3 {[%clk 0:00:00]} 51. Kd4 {[%clk 0:00:00]}  Kb4 {[%clk 0:00:00]} 52. Ne3 {[%clk 0:00:00]}  Kb5 {[%clk 0:00:00]} 53. Nd5 {[%clk 0:00:00]}  e6 {[%clk 0:00:00]} 54. Nf4 {[%clk 0:00:00]}  Nc7 {[%clk 0:00:00]} 55. h4 {[%clk 0:00:00]}  Kc6 {[%clk 0:00:00]} 56. h5 {[%clk 0:00:00]}  Kd7 {[%clk 0:00:00]} 57. h6 {[%clk 0:00:00]}  Ne8 {[%clk 0:00:00]} 58. h7 {[%clk 0:00:00]} 1-0


[Site "https://www.chess.com"]

[Event "Titled Tuesday Blitz August 16 Early 2022"]
[White "Tologon tegin, Semetei"]
[Black "Samunenkov, Ihor"]
[WhiteFideId "13800574"]
[BlackFideId "14187086"]
[WhiteElo "2174"]
[BlackElo "2441"]
[Result "1-0"]
[Round "10"]
[TimeControl "180+1"]
[Date "2022.08.16"]
[WhiteClock "0:00:32"]
[BlackClock "0:00:01"]

1. g3 {[%clk 0:02:58]}  c5 {[%clk 0:02:59]} 2. Bg2 {[%clk 0:02:58]}  Nc6 {[%clk 0:02:59]} 3. c4 {[%clk 0:02:58]}  g6 {[%clk 0:03:00]} 4. Nc3 {[%clk 0:02:57]}  Bg7 {[%clk 0:03:00]} 5. b3 {[%clk 0:02:58]}  e5 {[%clk 0:02:55]} 6. Bb2 {[%clk 0:02:58]}  Nge7 {[%clk 0:02:55]} 7. d3 {[%clk 0:02:51]}  O-O {[%clk 0:02:54]} 8. e3 {[%clk 0:02:51]}  d6 {[%clk 0:02:53]} 9. Nge2 {[%clk 0:02:51]}  Be6 {[%clk 0:02:48]} 10. Rc1 {[%clk 0:02:47]}  d5 {[%clk 0:02:42]} 11. cxd5 {[%clk 0:02:47]}  Nxd5 {[%clk 0:02:43]} 12. Nxd5 {[%clk 0:02:41]}  Bxd5 {[%clk 0:02:43]} 13. e4 {[%clk 0:02:40]}  Be6 {[%clk 0:01:42]} 14. Rxc5 {[%clk 0:02:38]}  Qd6 {[%clk 0:01:42]} 15. Rc3 {[%clk 0:02:34]}  Rfd8 {[%clk 0:01:42]} 16. O-O {[%clk 0:02:34]}  Rac8 {[%clk 0:01:30]} 17. a3 {[%clk 0:02:29]}  Ne7 {[%clk 0:01:08]} 18. Rxc8 {[%clk 0:02:20]}  Nxc8 {[%clk 0:00:58]} 19. Nc1 {[%clk 0:02:19]}  Ne7 {[%clk 0:00:58]} 20. Qd2 {[%clk 0:02:05]}  Nc6 {[%clk 0:00:56]} 21. Rd1 {[%clk 0:02:05]}  h5 {[%clk 0:00:52]} 22. b4 {[%clk 0:02:03]}  h4 {[%clk 0:00:49]} 23. Bc3 {[%clk 0:01:37]}  Kh7 {[%clk 0:00:42]} 24. Qb2 {[%clk 0:01:37]}  Bg4 {[%clk 0:00:29]} 25. f3 {[%clk 0:01:36]}  Be6 {[%clk 0:00:26]} 26. Ne2 {[%clk 0:01:35]}  h3 {[%clk 0:00:21]} 27. Bf1 {[%clk 0:01:34]}  Bh6 {[%clk 0:00:18]} 28. Kf2 {[%clk 0:01:27]}  Qc7 {[%clk 0:00:13]} 29. d4 {[%clk 0:01:16]}  Bc4 {[%clk 0:00:05]} 30. Bxh3 {[%clk 0:01:04]}  Qb6 {[%clk 0:00:03]} 31. Kg2 {[%clk 0:01:03]}  Bxe2 {[%clk 0:00:03]} 32. Qxe2 {[%clk 0:01:03]}  Nxd4 {[%clk 0:00:04]} 33. Bxd4 {[%clk 0:01:03]}  Rxd4 {[%clk 0:00:03]} 34. Bd7 {[%clk 0:00:58]}  Qd6 {[%clk 0:00:02]} 35. Ba4 {[%clk 0:00:57]}  Rd2 {[%clk 0:00:01]} 36. Rxd2 {[%clk 0:00:56]}  Qxd2 {[%clk 0:00:02]} 37. Qxd2 {[%clk 0:00:56]}  Bxd2 {[%clk 0:00:03]} 38. Bb3 {[%clk 0:00:53]}  Kg7 {[%clk 0:00:04]} 39. Bd5 {[%clk 0:00:53]}  b6 {[%clk 0:00:03]} 40. Kf1 {[%clk 0:00:51]}  Bc1 {[%clk 0:00:03]} 41. a4 {[%clk 0:00:51]}  Bd2 {[%clk 0:00:04]} 42. b5 {[%clk 0:00:51]}  Kf6 {[%clk 0:00:05]} 43. Kf2 {[%clk 0:00:48]}  Ke7 {[%clk 0:00:04]} 44. h4 {[%clk 0:00:47]}  Bc1 {[%clk 0:00:04]} 45. g4 {[%clk 0:00:46]}  f6 {[%clk 0:00:04]} 46. h5 {[%clk 0:00:47]}  gxh5 {[%clk 0:00:05]} 47. gxh5 {[%clk 0:00:47]}  Bf4 {[%clk 0:00:05]} 48. Kg2 {[%clk 0:00:47]}  f5 {[%clk 0:00:01]} 49. exf5 {[%clk 0:00:46]}  Kf6 {[%clk 0:00:02]} 50. Kf1 {[%clk 0:00:32]}  Kxf5 {[%clk 0:00:02]} 51. Ke2 {[%clk 0:00:29]}  Kg5 {[%clk 0:00:02]} 52. Bf7 {[%clk 0:00:29]}  Kf6 {[%clk 0:00:03]} 53. Bg6 {[%clk 0:00:29]}  Ke6 {[%clk 0:00:03]} 54. Kd3 {[%clk 0:00:29]}  Kd5 {[%clk 0:00:03]} 55. Bf7+ {[%clk 0:00:29]}  Kd6 {[%clk 0:00:03]} 56. Ke4 {[%clk 0:00:30]}  Ke7 {[%clk 0:00:03]} 57. Bd5 {[%clk 0:00:29]}  Kf6 {[%clk 0:00:03]} 58. Bc6 {[%clk 0:00:29]}  Kg5 {[%clk 0:00:03]} 59. Be8 {[%clk 0:00:30]}  Kh4 {[%clk 0:00:04]} 60. Bg6 {[%clk 0:00:28]}  Kg3 {[%clk 0:00:04]} 61. Bf5 {[%clk 0:00:28]}  Kh4 {[%clk 0:00:04]} 62. Bg4 {[%clk 0:00:28]}  Kg3 {[%clk 0:00:05]} 63. Bf5 {[%clk 0:00:28]}  Kh4 {[%clk 0:00:05]} 64. Bg6 {[%clk 0:00:29]}  Kg3 {[%clk 0:00:03]} 65. Bf7 {[%clk 0:00:29]}  Kh4 {[%clk 0:00:03]} 66. Kf5 {[%clk 0:00:29]}  Kg3 {[%clk 0:00:02]} 67. Bd5 {[%clk 0:00:29]}  Kh4 {[%clk 0:00:02]} 68. Kg6 {[%clk 0:00:29]}  e4 {[%clk 0:00:02]} 69. Bxe4 {[%clk 0:00:29]}  Be5 {[%clk 0:00:02]} 70. h6 {[%clk 0:00:30]}  Kg3 {[%clk 0:00:03]} 71. Kf7 {[%clk 0:00:30]}  Kf4 {[%clk 0:00:04]} 72. h7 {[%clk 0:00:30]}  Ke3 {[%clk 0:00:03]} 73. Kg8 {[%clk 0:00:30]}  Kd4 {[%clk 0:00:04]} 74. h8=Q {[%clk 0:00:31]}  Bxh8 {[%clk 0:00:05]} 75. Kxh8 {[%clk 0:00:32]}  Ke5 {[%clk 0:00:01]} 76. Kg7 {[%clk 0:00:32]}  Kf4 {[%clk 0:00:01]} 77. Kf7 {[%clk 0:00:32]} 1-0


[Site "https://www.chess.com"]

[Event "Titled Tuesday Blitz August 16 Early 2022"]
[White "Turzo, Attila"]
[Black "Korelskiy, Egor"]
[WhiteFideId "704954"]
[BlackFideId "34329064"]
[WhiteElo "2298"]
[BlackElo "2077"]
[Result "1-0"]
[Round "10"]
[TimeControl "180+2"]
[Date "2022.08.18"]
[WhiteClock "0:00:00"]
[BlackClock "0:00:00"]

1. e4 {[%clk 0:00:00]}  c5 {[%clk 0:00:00]} 2. Nf3 {[%clk 0:00:00]}  e6 {[%clk 0:00:00]} 3. g3 {[%clk 0:00:00]}  d5 {[%clk 0:00:00]} 4. exd5 {[%clk 0:00:00]}  exd5 {[%clk 0:00:00]} 5. d4 {[%clk 0:00:00]}  Nf6 {[%clk 0:00:00]} 6. Bg2 {[%clk 0:00:00]}  Be7 {[%clk 0:00:00]} 7. O-O {[%clk 0:00:00]}  O-O {[%clk 0:00:00]} 8. dxc5 {[%clk 0:00:00]}  Bxc5 {[%clk 0:00:00]} 9. Nbd2 {[%clk 0:00:00]}  h6 {[%clk 0:00:00]} 10. Nb3 {[%clk 0:00:00]}  Bb6 {[%clk 0:00:00]} 11. h3 {[%clk 0:00:00]}  Nc6 {[%clk 0:00:00]} 12. Re1 {[%clk 0:00:00]}  Be6 {[%clk 0:00:00]} 13. Be3 {[%clk 0:00:00]}  Bxe3 {[%clk 0:00:00]} 14. Rxe3 {[%clk 0:00:00]}  Qd6 {[%clk 0:00:00]} 15. Nfd4 {[%clk 0:00:00]}  Rfe8 {[%clk 0:00:00]} 16. Qd2 {[%clk 0:00:00]}  Rac8 {[%clk 0:00:00]} 17. Rae1 {[%clk 0:00:00]}  a6 {[%clk 0:00:00]} 18. c3 {[%clk 0:00:00]}  Re7 {[%clk 0:00:00]} 19. Nxc6 {[%clk 0:00:00]}  bxc6 {[%clk 0:00:00]} 20. c4 {[%clk 0:00:00]}  Rd8 {[%clk 0:00:00]} 21. cxd5 {[%clk 0:00:00]}  cxd5 {[%clk 0:00:00]} 22. Nd4 {[%clk 0:00:00]}  Rde8 {[%clk 0:00:00]} 23. Qe2 {[%clk 0:00:00]}  Kf8 {[%clk 0:00:00]} 24. Kh2 {[%clk 0:00:00]}  Bg4 {[%clk 0:00:00]} 25. Qd2 {[%clk 0:00:00]}  Rxe3 {[%clk 0:00:00]} 26. Rxe3 {[%clk 0:00:00]}  Rxe3 {[%clk 0:00:00]} 27. Qxe3 {[%clk 0:00:00]}  Bd7 {[%clk 0:00:00]} 28. a3 {[%clk 0:00:00]}  Qe7 {[%clk 0:00:00]} 29. Qxe7+ {[%clk 0:00:00]}  Kxe7 {[%clk 0:00:00]} 30. b4 {[%clk 0:00:00]}  Kd6 {[%clk 0:00:00]} 31. Bf1 {[%clk 0:00:00]}  Bc8 {[%clk 0:00:00]} 32. f4 {[%clk 0:00:00]}  Ne4 {[%clk 0:00:00]} 33. Kg2 {[%clk 0:00:00]}  Nd2 {[%clk 0:00:00]} 34. Bd3 {[%clk 0:00:00]}  Nc4 {[%clk 0:00:00]} 35. a4 {[%clk 0:00:00]}  Nb2 {[%clk 0:00:00]} 36. Bc2 {[%clk 0:00:00]}  Bd7 {[%clk 0:00:00]} 37. a5 {[%clk 0:00:00]}  Nc4 {[%clk 0:00:00]} 38. h4 {[%clk 0:00:00]}  Na3 {[%clk 0:00:00]} 39. Bd3 {[%clk 0:00:00]}  Nc4 {[%clk 0:00:00]} 40. Kf3 {[%clk 0:00:00]}  Nb2 {[%clk 0:00:00]} 41. Bxa6 {[%clk 0:00:00]}  Na4 {[%clk 0:00:00]} 42. Bd3 {[%clk 0:00:00]} 1-0


[Site "https://www.chess.com"]

[Event "Titled Tuesday Blitz August 16 Early 2022"]
[White "Vrbljanac, Aleksandar"]
[Black "Atakhan, Abtin"]
[WhiteFideId "932817"]
[BlackFideId "22502203"]
[WhiteElo "2309"]
[BlackElo "2087"]
[Result "0-1"]
[Round "10"]
[TimeControl "180+1"]
[Date "2022.08.16"]
[WhiteClock "0:00:09"]
[BlackClock "0:00:07"]

1. e4 {[%clk 0:03:00]}  c5 {[%clk 0:02:59]} 2. Nf3 {[%clk 0:03:00]}  Nc6 {[%clk 0:02:59]} 3. d4 {[%clk 0:03:01]}  cxd4 {[%clk 0:03:00]} 4. Nxd4 {[%clk 0:03:01]}  g6 {[%clk 0:03:01]} 5. Nc3 {[%clk 0:02:59]}  Bg7 {[%clk 0:03:01]} 6. Be3 {[%clk 0:03:00]}  Nf6 {[%clk 0:03:01]} 7. f3 {[%clk 0:03:00]}  O-O {[%clk 0:03:00]} 8. Qd2 {[%clk 0:03:01]}  d5 {[%clk 0:03:00]} 9. exd5 {[%clk 0:02:59]}  Nxd5 {[%clk 0:03:00]} 10. Nxc6 {[%clk 0:03:00]}  bxc6 {[%clk 0:03:00]} 11. Bd4 {[%clk 0:03:00]}  e5 {[%clk 0:02:37]} 12. Bc5 {[%clk 0:02:59]}  Be6 {[%clk 0:02:36]} 13. Ne4 {[%clk 0:02:59]}  Re8 {[%clk 0:02:28]} 14. Bc4 {[%clk 0:02:58]}  f5 {[%clk 0:02:25]} 15. Ng5 {[%clk 0:02:57]}  Rb8 {[%clk 0:01:41]} 16. O-O-O {[%clk 0:02:41]}  e4 {[%clk 0:01:38]} 17. Bb3 {[%clk 0:02:38]}  Qf6 {[%clk 0:01:22]} 18. c3 {[%clk 0:02:28]}  e3 {[%clk 0:01:22]} 19. Bxe3 {[%clk 0:02:03]}  Nxe3 {[%clk 0:00:54]} 20. Nxe6 {[%clk 0:01:57]}  Rxe6 {[%clk 0:00:54]} 21. Bxe6+ {[%clk 0:00:55]}  Qxe6 {[%clk 0:00:54]} 22. Qd6 {[%clk 0:00:50]}  Qe8 {[%clk 0:00:39]} 23. Rhe1 {[%clk 0:00:33]}  Bf8 {[%clk 0:00:30]} 24. Qd3 {[%clk 0:00:24]}  Bh6 {[%clk 0:00:28]} 25. Kb1 {[%clk 0:00:20]}  f4 {[%clk 0:00:28]} 26. Rd2 {[%clk 0:00:19]}  Qf7 {[%clk 0:00:26]} 27. g3 {[%clk 0:00:18]}  Nc4 {[%clk 0:00:22]} 28. Rde2 {[%clk 0:00:16]}  fxg3 {[%clk 0:00:20]} 29. hxg3 {[%clk 0:00:16]}  Bf8 {[%clk 0:00:18]} 30. f4 {[%clk 0:00:13]}  a5 {[%clk 0:00:18]} 31. Qe4 {[%clk 0:00:11]}  a4 {[%clk 0:00:15]} 32. Ka1 {[%clk 0:00:11]}  Na5 {[%clk 0:00:11]} 33. Qe6 {[%clk 0:00:11]}  Qxe6 {[%clk 0:00:10]} 34. Rxe6 {[%clk 0:00:12]}  Nc4 {[%clk 0:00:10]} 35. R1e2 {[%clk 0:00:10]}  Na5 {[%clk 0:00:07]} 36. R6e5 {[%clk 0:00:08]}  c5 {[%clk 0:00:07]} 37. Rd5 {[%clk 0:00:08]}  Nc4 {[%clk 0:00:05]} 38. Rd7 {[%clk 0:00:08]}  Nb6 {[%clk 0:00:05]} 39. Ra7 {[%clk 0:00:07]}  c4 {[%clk 0:00:04]} 40. Kb1 {[%clk 0:00:07]}  a3 {[%clk 0:00:05]} 41. b3 {[%clk 0:00:04]}  cxb3 {[%clk 0:00:05]} 42. axb3 {[%clk 0:00:05]}  Nc8 {[%clk 0:00:06]} 43. Rc7 {[%clk 0:00:03]}  Rxb3+ {[%clk 0:00:06]} 44. Ka2 {[%clk 0:00:04]}  Rb8 {[%clk 0:00:06]} 45. Re8 {[%clk 0:00:04]}  Rb2+ {[%clk 0:00:04]} 46. Ka1 {[%clk 0:00:04]}  Nd6 {[%clk 0:00:04]} 47. Rd7 {[%clk 0:00:04]}  Nxe8 {[%clk 0:00:04]} 48. Ra7 {[%clk 0:00:03]}  Rg2 {[%clk 0:00:04]} 49. Ra8 {[%clk 0:00:03]}  Rxg3 {[%clk 0:00:05]} 50. Rxe8 {[%clk 0:00:03]}  Rxc3 {[%clk 0:00:05]} 51. Re4 {[%clk 0:00:03]}  Rf3 {[%clk 0:00:04]} 52. Ka2 {[%clk 0:00:03]}  Kf7 {[%clk 0:00:04]} 53. f5 {[%clk 0:00:03]}  Rxf5 {[%clk 0:00:04]} 54. Ra4 {[%clk 0:00:04]}  h5 {[%clk 0:00:05]} 55. Ra7+ {[%clk 0:00:05]}  Be7 {[%clk 0:00:06]} 56. Rxa3 {[%clk 0:00:04]}  h4 {[%clk 0:00:07]} 57. Rh3 {[%clk 0:00:05]}  Rg5 {[%clk 0:00:06]} 58. Kb3 {[%clk 0:00:06]}  Rg3+ {[%clk 0:00:06]} 59. Kc4 {[%clk 0:00:05]}  Rxh3 {[%clk 0:00:06]} 60. Kd4 {[%clk 0:00:06]}  Rg3 {[%clk 0:00:06]} 61. Ke4 {[%clk 0:00:07]}  Bd6 {[%clk 0:00:06]} 62. Kd4 {[%clk 0:00:07]}  h3 {[%clk 0:00:06]} 63. Kd5 {[%clk 0:00:08]}  h2 {[%clk 0:00:06]} 64. Kxd6 {[%clk 0:00:09]}  h1=Q {[%clk 0:00:07]} 65. Kc5 {[%clk 0:00:08]}  Qc1+ {[%clk 0:00:07]} 66. Kd5 {[%clk 0:00:08]}  Rd3+ {[%clk 0:00:07]} 67. Ke5 {[%clk 0:00:09]}  Qe3# {[%clk 0:00:07]} 0-1


[Site "https://www.chess.com"]

[Event "Titled Tuesday Blitz August 16 Early 2022"]
[White "Weetik, Vjacheslav"]
[Black "Vovk, Orest"]
[WhiteFideId "4153472"]
[BlackFideId "14113490"]
[WhiteElo "2469"]
[BlackElo "2203"]
[Result "1/2-1/2"]
[Round "10"]
[TimeControl "180+1"]
[Date "2022.08.16"]
[WhiteClock "0:00:08"]
[BlackClock "0:00:08"]

1. d4 {[%clk 0:02:59]}  h6 {[%clk 0:02:59]} 2. e4 {[%clk 0:02:53]}  g5 {[%clk 0:02:59]} 3. h4 {[%clk 0:02:51]}  g4 {[%clk 0:02:59]} 4. Nc3 {[%clk 0:02:48]}  Bg7 {[%clk 0:02:59]} 5. Be3 {[%clk 0:02:42]}  d6 {[%clk 0:02:55]} 6. Nge2 {[%clk 0:02:41]}  c6 {[%clk 0:02:53]} 7. Ng3 {[%clk 0:02:32]}  Qa5 {[%clk 0:02:50]} 8. Be2 {[%clk 0:02:23]}  Nf6 {[%clk 0:02:47]} 9. Qd2 {[%clk 0:02:16]}  Nbd7 {[%clk 0:02:44]} 10. Nf5 {[%clk 0:02:10]}  Bf8 {[%clk 0:02:36]} 11. O-O {[%clk 0:01:52]}  Nxe4 {[%clk 0:02:30]} 12. Nxe4 {[%clk 0:01:45]}  Qxf5 {[%clk 0:02:30]} 13. f3 {[%clk 0:01:37]}  Nf6 {[%clk 0:02:20]} 14. Nxf6+ {[%clk 0:01:33]}  Qxf6 {[%clk 0:02:20]} 15. fxg4 {[%clk 0:01:32]}  Qxh4 {[%clk 0:02:16]} 16. Rf4 {[%clk 0:01:18]}  Be6 {[%clk 0:02:00]} 17. c4 {[%clk 0:01:18]}  Rg8 {[%clk 0:01:47]} 18. d5 {[%clk 0:01:01]}  Bxg4 {[%clk 0:01:42]} 19. Raf1 {[%clk 0:00:54]}  f6 {[%clk 0:01:26]} 20. dxc6 {[%clk 0:00:36]}  bxc6 {[%clk 0:01:25]} 21. Bf3 {[%clk 0:00:34]}  Rc8 {[%clk 0:01:15]} 22. Bxc6+ {[%clk 0:00:28]}  Rxc6 {[%clk 0:00:46]} 23. Qd5 {[%clk 0:00:28]}  Qg3 {[%clk 0:00:31]} 24. Qxc6+ {[%clk 0:00:25]}  Kf7 {[%clk 0:00:31]} 25. Qd5+ {[%clk 0:00:18]}  Be6 {[%clk 0:00:31]} 26. Qd2 {[%clk 0:00:19]}  Bh3 {[%clk 0:00:24]} 27. R1f2 {[%clk 0:00:14]}  Be6 {[%clk 0:00:20]} 28. R2f3 {[%clk 0:00:10]}  Qg6 {[%clk 0:00:19]} 29. b3 {[%clk 0:00:06]}  h5 {[%clk 0:00:18]} 30. Bf2 {[%clk 0:00:06]}  Bh6 {[%clk 0:00:17]} 31. Rg3 {[%clk 0:00:03]}  Bxf4 {[%clk 0:00:14]} 32. Qxf4 {[%clk 0:00:04]}  Qb1+ {[%clk 0:00:11]} 33. Kh2 {[%clk 0:00:04]}  Rg4 {[%clk 0:00:10]} 34. Rxg4 {[%clk 0:00:04]}  Bxg4 {[%clk 0:00:11]} 35. c5 {[%clk 0:00:03]}  dxc5 {[%clk 0:00:11]} 36. Bxc5 {[%clk 0:00:03]}  Qxa2 {[%clk 0:00:11]} 37. Qe3 {[%clk 0:00:03]}  e5 {[%clk 0:00:10]} 38. Bxa7 {[%clk 0:00:04]}  Qc2 {[%clk 0:00:08]} 39. b4 {[%clk 0:00:04]}  Bd7 {[%clk 0:00:07]} 40. Qf3 {[%clk 0:00:02]}  Qf5 {[%clk 0:00:06]} 41. Qxf5 {[%clk 0:00:02]}  Bxf5 {[%clk 0:00:07]} 42. b5 {[%clk 0:00:02]}  Be4 {[%clk 0:00:07]} 43. Be3 {[%clk 0:00:02]}  Bb7 {[%clk 0:00:07]} 44. g3 {[%clk 0:00:02]}  f5 {[%clk 0:00:07]} 45. b6 {[%clk 0:00:01]}  Ke6 {[%clk 0:00:07]} 46. Kh3 {[%clk 0:00:02]}  Kd5 {[%clk 0:00:07]} 47. Kh4 {[%clk 0:00:02]}  Ke4 {[%clk 0:00:07]} 48. Bg1 {[%clk 0:00:02]}  Kf3 {[%clk 0:00:08]} 49. Bc5 {[%clk 0:00:02]}  e4 {[%clk 0:00:08]} 50. Bb4 {[%clk 0:00:02]}  e3 {[%clk 0:00:07]} 51. Be1 {[%clk 0:00:03]}  Ke2 {[%clk 0:00:07]} 52. Bb4 {[%clk 0:00:03]}  Kf3 {[%clk 0:00:07]} 53. Be1 {[%clk 0:00:03]}  Ke2 {[%clk 0:00:08]} 54. Bb4 {[%clk 0:00:03]}  Kf2 {[%clk 0:00:08]} 55. Kxh5 {[%clk 0:00:02]}  Kxg3 {[%clk 0:00:07]} 56. Kg5 {[%clk 0:00:02]}  f4 {[%clk 0:00:07]} 57. Bd6 {[%clk 0:00:02]}  e2 {[%clk 0:00:07]} 58. Bxf4+ {[%clk 0:00:03]}  Kf2 {[%clk 0:00:08]} 59. Bd2 {[%clk 0:00:04]}  e1=B {[%clk 0:00:07]} 60. Bxe1+ {[%clk 0:00:04]}  Kxe1 {[%clk 0:00:07]} 61. Kf6 {[%clk 0:00:05]}  Kd2 {[%clk 0:00:08]} 62. Ke7 {[%clk 0:00:06]}  Kc3 {[%clk 0:00:08]} 63. Kd8 {[%clk 0:00:07]}  Bg2 {[%clk 0:00:08]} 64. Kc7 {[%clk 0:00:08]}  Kb4 {[%clk 0:00:08]} 65. b7 {[%clk 0:00:08]}  Bxb7 {[%clk 0:00:08]} 1/2-1/2


[Site "https://www.chess.com"]